[Event "Early-Titled-Tuesday-Blitz-September-05-2023"]
[Site "Chess.com"]
[Date "2023.09.05"]
[Round "2"]
[White "emeli_chess"]
[Black "CrushingKings"]
[Result "0-1"]
[WhiteElo "2384"]
[BlackElo "2549"]
[TimeControl "180+1"]
[EndTime "8:17:42 PDT"]
[Termination "CrushingKings won by resignation"]

1. d4 {[%clk 0:03:00.7]} 1... g6 {[%clk 0:03:00.9]} 2. c4 {[%clk 0:02:59.6]}
2... Bg7 {[%clk 0:03:01.1]} 3. Nc3 {[%clk 0:02:58.3]} 3... d6 {[%clk 0:03:00]}
4. e4 {[%clk 0:02:56.9]} 4... Nf6 {[%clk 0:03:00.3]} 5. f3 {[%clk 0:02:56.1]}
5... c6 {[%clk 0:03:00]} 6. Be3 {[%clk 0:02:55.2]} 6... a6 {[%clk 0:03:00.4]} 7.
Bd3 {[%clk 0:02:54.7]} 7... b5 {[%clk 0:03:00.6]} 8. Nge2 {[%clk 0:02:54.5]}
8... Nbd7 {[%clk 0:03:00.6]} 9. O-O {[%clk 0:02:54.1]} 9... O-O {[%clk
0:03:00.8]} 10. a3 {[%clk 0:02:52.7]} 10... e5 {[%clk 0:02:54.3]} 11. d5 {[%clk
0:02:51]} 11... bxc4 {[%clk 0:02:53.7]} 12. Bxc4 {[%clk 0:02:50.6]} 12... Nb6
{[%clk 0:02:39.4]} 13. Ba2 {[%clk 0:02:46.3]} 13... cxd5 {[%clk 0:02:39.4]} 14.
Nxd5 {[%clk 0:02:44.9]} 14... Nfxd5 {[%clk 0:02:24.1]} 15. Bxd5 {[%clk
0:02:44.6]} 15... Nxd5 {[%clk 0:02:23.9]} 16. Qxd5 {[%clk 0:02:44.8]} 16... Be6
{[%clk 0:02:23.9]} 17. Qd2 {[%clk 0:02:42]} 17... d5 {[%clk 0:02:23.8]} 18. exd5
{[%clk 0:02:36.8]} 18... Bxd5 {[%clk 0:02:14.1]} 19. Nc3 {[%clk 0:02:31.4]}
19... Bb3 {[%clk 0:02:11.6]} 20. Rf2 {[%clk 0:02:19.4]} 20... f5 {[%clk
0:02:06.9]} 21. Bh6 {[%clk 0:02:06.6]} 21... Qd4 {[%clk 0:01:57]} 22. Bxg7
{[%clk 0:02:03]} 22... Kxg7 {[%clk 0:01:56.7]} 23. Re1 {[%clk 0:01:56.4]} 23...
Rad8 {[%clk 0:01:49.7]} 24. Qe3 {[%clk 0:01:56.4]} 24... Rfe8 {[%clk 0:01:46.6]}
25. h4 {[%clk 0:01:49.1]} 25... Qxh4 {[%clk 0:01:39.4]} 26. Rd2 {[%clk
0:01:40.3]} 26... Rxd2 {[%clk 0:01:27.6]} 27. Qxd2 {[%clk 0:01:40.1]} 27... Rd8
{[%clk 0:01:28]} 28. Qe3 {[%clk 0:01:31.1]} 28... Qd4 {[%clk 0:01:26.5]} 29.
Qxd4 {[%clk 0:01:14.9]} 29... exd4 {[%clk 0:01:25.4]} 30. Nb1 {[%clk 0:01:15.2]}
30... Kf6 {[%clk 0:01:01.2]} 31. Nd2 {[%clk 0:01:13.2]} 31... Be6 {[%clk
0:01:01.8]} 32. Rc1 {[%clk 0:01:10.9]} 32... Rc8 {[%clk 0:01:01.3]} 33. Rxc8
{[%clk 0:01:06.9]} 33... Bxc8 {[%clk 0:01:02.2]} 34. Nb3 {[%clk 0:01:05.8]}
34... Ke5 {[%clk 0:01:01.2]} 35. Kf2 {[%clk 0:01:04.4]} 35... Be6 {[%clk
0:00:45.7]} 36. Nc5 {[%clk 0:00:57]} 36... Bc8 {[%clk 0:00:44.8]} 37. g3 {[%clk
0:00:50.6]} 37... g5 {[%clk 0:00:43.2]} 38. Nd3+ {[%clk 0:00:39.3]} 38... Kd5
{[%clk 0:00:43.4]} 39. f4 {[%clk 0:00:30.8]} 39... h6 {[%clk 0:00:42.7]} 40. Kf3
{[%clk 0:00:28.3]} 40... Kc4 {[%clk 0:00:36.4]} 41. Ke2 {[%clk 0:00:23.2]} 41...
Kb3 {[%clk 0:00:31.3]} 42. Nc5+ {[%clk 0:00:23.3]} 42... Kxb2 {[%clk 0:00:30.5]}
43. Kd3 {[%clk 0:00:22.8]} 43... gxf4 {[%clk 0:00:29.1]} 44. gxf4 {[%clk
0:00:22.6]} 44... h5 {[%clk 0:00:29.5]} 45. Kxd4 {[%clk 0:00:22.9]} 45... Kxa3
{[%clk 0:00:29.6]} 46. Kc3 {[%clk 0:00:16]} 46... h4 {[%clk 0:00:27.6]} 47. Nd3
{[%clk 0:00:16.1]} 47... h3 {[%clk 0:00:27]} 48. Nf2 {[%clk 0:00:16.3]} 48... h2
{[%clk 0:00:27]} 49. Nh1 {[%clk 0:00:15.7]} 49... Bb7 {[%clk 0:00:27.2]} 0-1

[Event "Early-Titled-Tuesday-Blitz-September-05-2023"]
[Site "Chess.com"]
[Date "2023.09.05"]
[Round "2"]
[White "Parhamov"]
[Black "Orest_Vovk"]
[Result "1-0"]
[WhiteElo "2922"]
[BlackElo "2608"]
[TimeControl "180+1"]
[EndTime "8:17:43 PDT"]
[Termination "Parhamov won on time"]

1. d4 {[%clk 0:03:00.9]} 1... g6 {[%clk 0:02:57.9]} 2. e4 {[%clk 0:02:59.8]}
2... Nf6 {[%clk 0:02:56.3]} 3. e5 {[%clk 0:02:42.3]} 3... Nh5 {[%clk 0:02:54.2]}
4. Be2 {[%clk 0:02:39.5]} 4... d6 {[%clk 0:02:52.8]} 5. Bxh5 {[%clk 0:02:37.2]}
5... gxh5 {[%clk 0:02:51.5]} 6. Qxh5 {[%clk 0:02:33.7]} 6... dxe5 {[%clk
0:02:50.3]} 7. Qxe5 {[%clk 0:02:26.5]} 7... Rg8 {[%clk 0:02:49.4]} 8. Qe4 {[%clk
0:02:20.7]} 8... Rg4 {[%clk 0:02:44.6]} 9. Qf3 {[%clk 0:02:18.8]} 9... Rxd4
{[%clk 0:02:32]} 10. Nc3 {[%clk 0:02:17.1]} 10... Bg4 {[%clk 0:02:29.4]} 11. Be3
{[%clk 0:01:57.2]} 11... Bxf3 {[%clk 0:02:26.9]} 12. Nxf3 {[%clk 0:01:57.7]}
12... Rd7 {[%clk 0:02:19.6]} 13. Ne5 {[%clk 0:01:53.7]} 13... Rd6 {[%clk
0:02:12.9]} 14. Nc4 {[%clk 0:01:54]} 14... Re6 {[%clk 0:01:57.2]} 15. Rd1 {[%clk
0:01:53.7]} 15... Qc8 {[%clk 0:01:50.2]} 16. O-O {[%clk 0:01:53.6]} 16... Bg7
{[%clk 0:01:44.1]} 17. Nd5 {[%clk 0:01:46.8]} 17... c6 {[%clk 0:01:28.9]} 18.
Ndb6 {[%clk 0:01:38.6]} 18... axb6 {[%clk 0:01:12.1]} 19. Nxb6 {[%clk
0:01:38.9]} 19... Rxe3 {[%clk 0:00:34.5]} 20. Nxc8 {[%clk 0:01:32.8]} 20... Re2
{[%clk 0:00:32.2]} 21. Rfe1 {[%clk 0:01:18.5]} 21... Rxe1+ {[%clk 0:00:21.5]}
22. Rxe1 {[%clk 0:01:18.8]} 22... Bf6 {[%clk 0:00:18.9]} 23. Nd6+ {[%clk
0:01:18.9]} 23... Kd7 {[%clk 0:00:18.7]} 24. Nxb7 {[%clk 0:01:17.1]} 24... Rxa2
{[%clk 0:00:17.7]} 25. Nc5+ {[%clk 0:01:17.6]} 25... Kc7 {[%clk 0:00:16]} 26.
Nd3 {[%clk 0:01:16.9]} 26... Nd7 {[%clk 0:00:14.4]} 27. g4 {[%clk 0:01:15.1]}
27... e6 {[%clk 0:00:14.5]} 28. c3 {[%clk 0:01:14.3]} 28... c5 {[%clk
0:00:13.2]} 29. Re4 {[%clk 0:01:13.6]} 29... Ra1+ {[%clk 0:00:12.4]} 30. Kg2
{[%clk 0:01:13.7]} 30... Rd1 {[%clk 0:00:13]} 31. Re3 {[%clk 0:01:11.2]} 31...
Bg5 {[%clk 0:00:11.1]} 32. Rf3 {[%clk 0:01:11]} 32... f6 {[%clk 0:00:10.1]} 33.
b4 {[%clk 0:01:10.7]} 33... c4 {[%clk 0:00:08.9]} 34. Nb2 {[%clk 0:01:10.9]}
34... Rc1 {[%clk 0:00:06.1]} 35. Nxc4 {[%clk 0:01:11.1]} 35... Ne5 {[%clk
0:00:05.3]} 36. Nxe5 {[%clk 0:01:10.8]} 36... fxe5 {[%clk 0:00:06.2]} 37. Rf7+
{[%clk 0:01:07.6]} 37... Kd6 {[%clk 0:00:06.1]} 38. Rxh7 {[%clk 0:01:08.2]}
38... Rxc3 {[%clk 0:00:05.9]} 39. h4 {[%clk 0:01:08.7]} 39... Bf4 {[%clk
0:00:06.1]} 40. g5 {[%clk 0:01:09]} 40... e4 {[%clk 0:00:05.7]} 41. g6 {[%clk
0:01:06.6]} 41... Rc8 {[%clk 0:00:04.9]} 42. h5 {[%clk 0:01:03.1]} 42... Rg8
{[%clk 0:00:03]} 43. Rf7 {[%clk 0:00:59.2]} 43... e5 {[%clk 0:00:02.3]} 44. Kh3
{[%clk 0:00:56.6]} 44... e3 {[%clk 0:00:02.7]} 45. fxe3 {[%clk 0:00:56.5]} 45...
Bxe3 {[%clk 0:00:03.6]} 46. Kg4 {[%clk 0:00:56.9]} 46... Bf4 {[%clk 0:00:03.8]}
47. Kf5 {[%clk 0:00:56.6]} 47... Bd2 {[%clk 0:00:03.3]} 48. g7 {[%clk
0:00:45.3]} 48... Bh6 {[%clk 0:00:03.3]} 49. Rf6+ {[%clk 0:00:45.7]} 49... Ke7
{[%clk 0:00:02.4]} 50. Rxh6 {[%clk 0:00:46.2]} 50... Rxg7 {[%clk 0:00:03.3]} 51.
b5 {[%clk 0:00:44.6]} 51... Kf7 {[%clk 0:00:03.1]} 52. b6 {[%clk 0:00:43.9]}
52... Kg8 {[%clk 0:00:03.4]} 53. Rg6 {[%clk 0:00:44.3]} 1-0

[Event "Early-Titled-Tuesday-Blitz-September-05-2023"]
[Site "Chess.com"]
[Date "2023.09.05"]
[Round "2"]
[White "HajiyevKanan"]
[Black "GaiozNigalidze"]
[Result "1-0"]
[WhiteElo "2473"]
[BlackElo "2751"]
[TimeControl "180+1"]
[EndTime "8:17:43 PDT"]
[Termination "HajiyevKanan won on time"]

1. d4 {[%clk 0:03:00.9]} 1... Nf6 {[%clk 0:02:59.5]} 2. Nf3 {[%clk 0:03:01.8]}
2... d5 {[%clk 0:02:59]} 3. Bf4 {[%clk 0:03:01.8]} 3... e6 {[%clk 0:02:59.5]} 4.
e3 {[%clk 0:03:02]} 4... Be7 {[%clk 0:03:00.1]} 5. Bd3 {[%clk 0:03:01.9]} 5...
O-O {[%clk 0:03:00.4]} 6. O-O {[%clk 0:03:02.2]} 6... b6 {[%clk 0:03:01]} 7. c4
{[%clk 0:03:02.3]} 7... Bb7 {[%clk 0:03:01.4]} 8. Nc3 {[%clk 0:03:02.2]} 8...
Nbd7 {[%clk 0:03:00.8]} 9. cxd5 {[%clk 0:02:58.6]} 9... exd5 {[%clk 0:02:57.8]}
10. Qc2 {[%clk 0:02:58.3]} 10... a6 {[%clk 0:02:53.4]} 11. Ne5 {[%clk 0:02:57]}
11... c5 {[%clk 0:02:50.4]} 12. Bg5 {[%clk 0:02:48.8]} 12... h6 {[%clk
0:02:47.2]} 13. Bh4 {[%clk 0:02:43.3]} 13... c4 {[%clk 0:02:42.2]} 14. Bf5
{[%clk 0:02:42.1]} 14... b5 {[%clk 0:02:42.8]} 15. a3 {[%clk 0:02:41]} 15... Nb6
{[%clk 0:02:23.5]} 16. f4 {[%clk 0:02:37.5]} 16... Ne8 {[%clk 0:02:09.4]} 17.
Bf2 {[%clk 0:02:32.7]} 17... Nd6 {[%clk 0:02:06.9]} 18. Bh3 {[%clk 0:02:28.5]}
18... f5 {[%clk 0:01:53.4]} 19. Kh1 {[%clk 0:02:26.2]} 19... Ne4 {[%clk
0:01:48.6]} 20. Nxe4 {[%clk 0:02:22.3]} 20... dxe4 {[%clk 0:01:49.5]} 21. g4
{[%clk 0:02:18.9]} 21... fxg4 {[%clk 0:01:41.6]} 22. Bxg4 {[%clk 0:02:19.8]}
22... Bd5 {[%clk 0:01:35.5]} 23. Rg1 {[%clk 0:02:14.7]} 23... Qd6 {[%clk
0:01:35.4]} 24. Rg2 {[%clk 0:02:09.7]} 24... Rf6 {[%clk 0:01:27.9]} 25. Rag1
{[%clk 0:02:08.2]} 25... Bf8 {[%clk 0:00:52]} 26. Bh4 {[%clk 0:02:05.5]} 26...
Re6 {[%clk 0:00:52.4]} 27. Bf5 {[%clk 0:01:40.8]} 27... Ra7 {[%clk 0:00:42.5]}
28. Bxe4 {[%clk 0:01:16.9]} 28... Bxe4 {[%clk 0:00:38.8]} 29. Qxe4 {[%clk
0:01:17.8]} 29... Nd5 {[%clk 0:00:33.4]} 30. f5 {[%clk 0:01:15.6]} 30... Re8
{[%clk 0:00:26.5]} 31. Qf3 {[%clk 0:00:54.5]} 31... Rxe5 {[%clk 0:00:18.8]} 32.
dxe5 {[%clk 0:00:48.2]} 32... Qxe5 {[%clk 0:00:19.7]} 33. e4 {[%clk 0:00:46.1]}
33... Nf6 {[%clk 0:00:17.7]} 34. Bxf6 {[%clk 0:00:32.7]} 34... Qxf6 {[%clk
0:00:17.9]} 35. Qf4 {[%clk 0:00:22.2]} 35... Re7 {[%clk 0:00:17.1]} 36. Rg6
{[%clk 0:00:19.7]} 36... Qd4 {[%clk 0:00:17.3]} 37. f6 {[%clk 0:00:19.7]} 37...
Rxe4 {[%clk 0:00:10.6]} 38. Rxg7+ {[%clk 0:00:18.6]} 38... Bxg7 {[%clk
0:00:08.8]} 39. Rxg7+ {[%clk 0:00:19.5]} 39... Kf8 {[%clk 0:00:09.2]} 40. Qxh6
{[%clk 0:00:11.3]} 40... Qd5 {[%clk 0:00:03.8]} 41. Qh8+ {[%clk 0:00:08.6]} 1-0

[Event "Early-Titled-Tuesday-Blitz-September-05-2023"]
[Site "Chess.com"]
[Date "2023.09.05"]
[Round "2"]
[White "HanSchut"]
[Black "LeoLV10"]
[Result "1/2-1/2"]
[WhiteElo "2254"]
[BlackElo "2473"]
[TimeControl "180+1"]
[EndTime "8:17:43 PDT"]
[Termination "Game drawn by repetition"]

1. e4 {[%clk 0:03:00.9]} 1... c6 {[%clk 0:02:51.5]} 2. d4 {[%clk 0:03:00.1]}
2... d5 {[%clk 0:02:52.4]} 3. exd5 {[%clk 0:03:00.6]} 3... cxd5 {[%clk
0:02:53.3]} 4. c4 {[%clk 0:03:01]} 4... Nc6 {[%clk 0:02:53.1]} 5. Nc3 {[%clk
0:03:00.6]} 5... Nf6 {[%clk 0:02:52.9]} 6. Nf3 {[%clk 0:03:00.6]} 6... Be6
{[%clk 0:02:51.8]} 7. c5 {[%clk 0:02:59.3]} 7... g6 {[%clk 0:02:51.1]} 8. Bb5
{[%clk 0:02:58.4]} 8... Bg7 {[%clk 0:02:50.8]} 9. Ne5 {[%clk 0:02:58.6]} 9...
Bd7 {[%clk 0:02:49.8]} 10. Nxd7 {[%clk 0:02:55.1]} 10... Qxd7 {[%clk 0:02:49.5]}
11. O-O {[%clk 0:02:51.4]} 11... O-O {[%clk 0:02:48.6]} 12. Re1 {[%clk
0:02:48.7]} 12... Rfe8 {[%clk 0:02:46.2]} 13. Bf4 {[%clk 0:02:40.4]} 13... a6
{[%clk 0:02:45.3]} 14. Bxc6 {[%clk 0:02:40.4]} 14... Qxc6 {[%clk 0:02:46.2]} 15.
Be5 {[%clk 0:02:37.9]} 15... Nd7 {[%clk 0:02:42.4]} 16. Bxg7 {[%clk 0:02:35.7]}
16... Kxg7 {[%clk 0:02:43.3]} 17. Qf3 {[%clk 0:02:23.9]} 17... Nf6 {[%clk
0:02:38.5]} 18. b4 {[%clk 0:02:21.4]} 18... Rad8 {[%clk 0:02:34]} 19. a4 {[%clk
0:02:19.9]} 19... Qc7 {[%clk 0:02:28.5]} 20. Qg3 {[%clk 0:02:04.4]} 20... Qd7
{[%clk 0:02:09.6]} 21. b5 {[%clk 0:01:58.5]} 21... Qf5 {[%clk 0:02:00.3]} 22.
Rac1 {[%clk 0:01:32.3]} 22... Ra8 {[%clk 0:01:48.5]} 23. Qc7 {[%clk 0:01:25.1]}
23... axb5 {[%clk 0:01:40]} 24. axb5 {[%clk 0:01:21.4]} 24... Qg4 {[%clk
0:01:03.7]} 25. Qe5 {[%clk 0:01:13.6]} 25... Ra3 {[%clk 0:00:59.8]} 26. Nxd5
{[%clk 0:01:00.4]} 26... Rd8 {[%clk 0:00:48.7]} 27. Ne3 {[%clk 0:00:44.5]} 27...
Qd7 {[%clk 0:00:38.6]} 28. Red1 {[%clk 0:00:36.1]} 28... Qxb5 {[%clk 0:00:26.1]}
29. Qxe7 {[%clk 0:00:29.8]} 29... Re8 {[%clk 0:00:26.2]} 30. Qd6 {[%clk
0:00:20.6]} 30... Rd3 {[%clk 0:00:20.6]} 31. Qb6 {[%clk 0:00:13.5]} 31... Rxd1+
{[%clk 0:00:17.3]} 32. Rxd1 {[%clk 0:00:14.4]} 32... Qe2 {[%clk 0:00:17.5]} 33.
Rf1 {[%clk 0:00:11.8]} 33... Qd2 {[%clk 0:00:12.6]} 34. Qxb7 {[%clk 0:00:09]}
34... Qxd4 {[%clk 0:00:12.2]} 35. c6 {[%clk 0:00:08.4]} 35... Rxe3 {[%clk
0:00:07.3]} 36. fxe3 {[%clk 0:00:08.3]} 36... Qxe3+ {[%clk 0:00:08]} 37. Kh1
{[%clk 0:00:08.1]} 37... Ng4 {[%clk 0:00:08.3]} 38. h3 {[%clk 0:00:08.3]} 38...
Nf2+ {[%clk 0:00:07.6]} 39. Rxf2 {[%clk 0:00:08.9]} 39... Qe1+ {[%clk
0:00:06.8]} 40. Kh2 {[%clk 0:00:08.8]} 40... Qxf2 {[%clk 0:00:07.5]} 41. c7
{[%clk 0:00:08.5]} 41... Qf4+ {[%clk 0:00:07.7]} 42. Kh1 {[%clk 0:00:08.8]}
42... Qf1+ {[%clk 0:00:07.8]} 43. Kh2 {[%clk 0:00:09.4]} 43... Qf4+ {[%clk
0:00:08.5]} 44. Kg1 {[%clk 0:00:10]} 44... Qc1+ {[%clk 0:00:08.9]} 45. Kf2
{[%clk 0:00:10.1]} 45... Qd2+ {[%clk 0:00:09.4]} 46. Kf1 {[%clk 0:00:10.2]}
46... Qd1+ {[%clk 0:00:09.3]} 47. Kf2 {[%clk 0:00:10.6]} 47... Qd2+ {[%clk
0:00:09.8]} 48. Kf1 {[%clk 0:00:11]} 48... Qd1+ {[%clk 0:00:10.3]} 49. Kf2
{[%clk 0:00:11.6]} 49... Qd2+ {[%clk 0:00:10.8]} 1/2-1/2

[Event "Early-Titled-Tuesday-Blitz-September-05-2023"]
[Site "Chess.com"]
[Date "2023.09.05"]
[Round "2"]
[White "jsdbv18"]
[Black "Irina_Mikhaylova"]
[Result "1/2-1/2"]
[WhiteElo "2584"]
[BlackElo "2313"]
[TimeControl "180+1"]
[EndTime "8:17:44 PDT"]
[Termination "Game drawn by repetition"]

1. d4 {[%clk 0:02:57.7]} 1... Nf6 {[%clk 0:03:00]} 2. c4 {[%clk 0:02:57.8]} 2...
g6 {[%clk 0:03:00.5]} 3. Nf3 {[%clk 0:02:57.6]} 3... Bg7 {[%clk 0:03:00.4]} 4.
Bf4 {[%clk 0:02:55.5]} 4... O-O {[%clk 0:02:59.9]} 5. e3 {[%clk 0:02:55.6]} 5...
d5 {[%clk 0:02:23]} 6. Nc3 {[%clk 0:02:52.8]} 6... c5 {[%clk 0:02:23.3]} 7. dxc5
{[%clk 0:02:39.1]} 7... Qa5 {[%clk 0:02:20.1]} 8. Be5 {[%clk 0:02:37.2]} 8...
dxc4 {[%clk 0:02:16.3]} 9. Bxc4 {[%clk 0:02:34.2]} 9... Qxc5 {[%clk 0:02:12]}
10. Qd4 {[%clk 0:02:30.9]} 10... Qxd4 {[%clk 0:02:06.8]} 11. Nxd4 {[%clk
0:02:31.8]} 11... Bd7 {[%clk 0:02:01]} 12. O-O {[%clk 0:02:26]} 12... Nc6 {[%clk
0:02:01.3]} 13. Nxc6 {[%clk 0:02:25]} 13... Bxc6 {[%clk 0:02:01.8]} 14. f3
{[%clk 0:02:23.3]} 14... Rfd8 {[%clk 0:01:50.6]} 15. Rfd1 {[%clk 0:02:21.3]}
15... Nd7 {[%clk 0:01:46.2]} 16. Bxg7 {[%clk 0:02:19]} 16... Kxg7 {[%clk
0:01:46.6]} 17. Kf2 {[%clk 0:02:15.4]} 17... Nb6 {[%clk 0:01:32.7]} 18. Bb3
{[%clk 0:02:12.4]} 18... e6 {[%clk 0:01:29.2]} 19. e4 {[%clk 0:02:08]} 19... Kf6
{[%clk 0:01:29.2]} 20. Ke3 {[%clk 0:02:05.4]} 20... Ke7 {[%clk 0:01:29.2]} 21.
h4 {[%clk 0:02:02.7]} 21... f6 {[%clk 0:01:23.5]} 22. g4 {[%clk 0:02:02]} 22...
Rd7 {[%clk 0:01:05.7]} 23. Rxd7+ {[%clk 0:02:01.1]} 23... Nxd7 {[%clk
0:01:05.6]} 24. Rd1 {[%clk 0:01:55.4]} 24... Rd8 {[%clk 0:00:59]} 25. g5 {[%clk
0:01:53.3]} 25... f5 {[%clk 0:00:51.9]} 26. f4 {[%clk 0:01:24.9]} 26... fxe4
{[%clk 0:00:36.3]} 27. Bc2 {[%clk 0:01:22.5]} 27... e5 {[%clk 0:00:28.8]} 28.
Bxe4 {[%clk 0:01:15.4]} 28... exf4+ {[%clk 0:00:28.4]} 29. Kxf4 {[%clk
0:01:15.9]} 29... Rf8+ {[%clk 0:00:26.6]} 30. Ke3 {[%clk 0:01:15.4]} 30... Ne5
{[%clk 0:00:26.6]} 31. Bxc6 {[%clk 0:01:13.9]} 31... bxc6 {[%clk 0:00:27]} 32.
Ke4 {[%clk 0:01:11.7]} 32... Nc4 {[%clk 0:00:18.2]} 33. b3 {[%clk 0:00:49.7]}
33... Nd6+ {[%clk 0:00:18.4]} 34. Kd3 {[%clk 0:00:49.8]} 34... Rf3+ {[%clk
0:00:17.7]} 35. Kc2 {[%clk 0:00:32.1]} 35... Rh3 {[%clk 0:00:17.6]} 36. Rd4
{[%clk 0:00:29]} 36... Nf5 {[%clk 0:00:15.7]} 37. Ra4 {[%clk 0:00:26.7]} 37...
Rxh4 {[%clk 0:00:14.9]} 38. Rxa7+ {[%clk 0:00:26.6]} 38... Kd6 {[%clk
0:00:15.5]} 39. a4 {[%clk 0:00:25.2]} 39... Nd4+ {[%clk 0:00:14.5]} 40. Kb2
{[%clk 0:00:24.4]} 40... Rh2+ {[%clk 0:00:13.4]} 41. Ka3 {[%clk 0:00:19.1]}
41... Rh3 {[%clk 0:00:13.7]} 42. Kb2 {[%clk 0:00:18.5]} 42... Rh2+ {[%clk
0:00:13.9]} 43. Ka3 {[%clk 0:00:14.4]} 43... Rh3 {[%clk 0:00:14.2]} 44. Kb2
{[%clk 0:00:05.9]} 44... Rh2+ {[%clk 0:00:14.3]} 1/2-1/2

[Event "Early-Titled-Tuesday-Blitz-September-05-2023"]
[Site "Chess.com"]
[Date "2023.09.05"]
[Round "2"]
[White "vedantgoswami"]
[Black "ErikRonka"]
[Result "0-1"]
[WhiteElo "2297"]
[BlackElo "2507"]
[TimeControl "180+1"]
[EndTime "8:17:44 PDT"]
[Termination "ErikRonka won on time"]

1. d4 {[%clk 0:02:55.6]} 1... d5 {[%clk 0:02:58.8]} 2. Nf3 {[%clk 0:02:55.2]}
2... Nf6 {[%clk 0:02:57.7]} 3. Bf4 {[%clk 0:02:55.7]} 3... c5 {[%clk 0:02:56.9]}
4. e3 {[%clk 0:02:55]} 4... Nc6 {[%clk 0:02:57.5]} 5. Nbd2 {[%clk 0:02:52.2]}
5... e6 {[%clk 0:02:55.4]} 6. c3 {[%clk 0:02:50]} 6... Nh5 {[%clk 0:02:54.7]} 7.
Be5 {[%clk 0:02:46.6]} 7... f6 {[%clk 0:02:47.6]} 8. Bg3 {[%clk 0:02:45.9]} 8...
cxd4 {[%clk 0:02:34.3]} 9. exd4 {[%clk 0:02:26.6]} 9... Bd6 {[%clk 0:02:09.9]}
10. Bd3 {[%clk 0:02:19.9]} 10... Nf4 {[%clk 0:02:06.4]} 11. Bxf4 {[%clk
0:02:18.1]} 11... Bxf4 {[%clk 0:02:07.3]} 12. O-O {[%clk 0:02:10]} 12... O-O
{[%clk 0:01:47.8]} 13. Qc2 {[%clk 0:02:09.8]} 13... f5 {[%clk 0:01:38.8]} 14.
Rfe1 {[%clk 0:02:08.7]} 14... Bd7 {[%clk 0:01:36.8]} 15. a3 {[%clk 0:02:08]}
15... Qf6 {[%clk 0:01:32.5]} 16. Nb3 {[%clk 0:01:40.9]} 16... Rae8 {[%clk
0:01:23.8]} 17. Nc5 {[%clk 0:01:30.4]} 17... Bc8 {[%clk 0:01:23.5]} 18. Bb5
{[%clk 0:01:30.6]} 18... g5 {[%clk 0:01:19.6]} 19. Bxc6 {[%clk 0:01:27.9]} 19...
bxc6 {[%clk 0:01:19.5]} 20. Nd3 {[%clk 0:01:26.2]} 20... Bd6 {[%clk 0:01:12]}
21. Nfe5 {[%clk 0:01:25.2]} 21... Kh8 {[%clk 0:00:57.3]} 22. c4 {[%clk
0:01:24.5]} 22... f4 {[%clk 0:00:39.1]} 23. c5 {[%clk 0:01:11.9]} 23... Bc7
{[%clk 0:00:37.9]} 24. f3 {[%clk 0:01:09.2]} 24... h5 {[%clk 0:00:17.3]} 25. Qa4
{[%clk 0:00:42.8]} 25... Rg8 {[%clk 0:00:15.8]} 26. Qxc6 {[%clk 0:00:41.9]}
26... Bb8 {[%clk 0:00:16.1]} 27. Kh1 {[%clk 0:00:27.9]} 27... g4 {[%clk
0:00:16]} 28. Rad1 {[%clk 0:00:18.4]} 28... Qf5 {[%clk 0:00:13.4]} 29. Re2
{[%clk 0:00:17.5]} 29... Re7 {[%clk 0:00:12.3]} 30. Rde1 {[%clk 0:00:16.9]}
30... Reg7 {[%clk 0:00:12.7]} 31. Qa4 {[%clk 0:00:14.3]} 31... gxf3 {[%clk
0:00:11.8]} 32. gxf3 {[%clk 0:00:11.8]} 32... Qg5 {[%clk 0:00:09.9]} 33. Qd1
{[%clk 0:00:10.6]} 33... Qh4 {[%clk 0:00:08.8]} 34. Rf2 {[%clk 0:00:08.2]} 34...
Ba6 {[%clk 0:00:09]} 35. Ref1 {[%clk 0:00:05]} 35... Bc7 {[%clk 0:00:08.6]} 36.
Qe2 {[%clk 0:00:04.6]} 36... Rg3 {[%clk 0:00:06.9]} 37. b4 {[%clk 0:00:04]}
37... Bb5 {[%clk 0:00:06.2]} 38. Qd2 {[%clk 0:00:01]} 38... R3g5 {[%clk
0:00:06.2]} 0-1

[Event "Early-Titled-Tuesday-Blitz-September-05-2023"]
[Site "Chess.com"]
[Date "2023.09.05"]
[Round "2"]
[White "vidavi"]
[Black "nassimzrikem"]
[Result "0-1"]
[WhiteElo "2461"]
[BlackElo "2242"]
[TimeControl "180+1"]
[EndTime "8:17:46 PDT"]
[Termination "nassimzrikem won on time"]

1. Nf3 {[%clk 0:03:00.9]} 1... Nf6 {[%clk 0:02:50.4]} 2. d4 {[%clk 0:03:01.1]}
2... e6 {[%clk 0:02:49.7]} 3. c4 {[%clk 0:03:01.7]} 3... d5 {[%clk 0:02:47.2]}
4. Bg5 {[%clk 0:02:59.9]} 4... Be7 {[%clk 0:02:44.6]} 5. Nc3 {[%clk 0:02:58.7]}
5... c6 {[%clk 0:02:35.9]} 6. e3 {[%clk 0:02:58]} 6... Nbd7 {[%clk 0:02:25.3]}
7. Bd3 {[%clk 0:02:55.2]} 7... h6 {[%clk 0:02:24.4]} 8. Bh4 {[%clk 0:02:54.4]}
8... dxc4 {[%clk 0:02:05.4]} 9. Bxc4 {[%clk 0:02:54.2]} 9... b5 {[%clk
0:02:06.1]} 10. Bd3 {[%clk 0:02:51.8]} 10... Bb7 {[%clk 0:02:05.4]} 11. O-O
{[%clk 0:02:50.6]} 11... a6 {[%clk 0:02:05]} 12. a4 {[%clk 0:02:49.6]} 12... b4
{[%clk 0:02:03.3]} 13. Ne2 {[%clk 0:02:42.6]} 13... c5 {[%clk 0:01:58.7]} 14.
Ne5 {[%clk 0:02:28.2]} 14... Nxe5 {[%clk 0:01:50.3]} 15. dxe5 {[%clk 0:02:28]}
15... Qd5 {[%clk 0:01:46.3]} 16. Nf4 {[%clk 0:02:04]} 16... Qxe5 {[%clk
0:01:37.6]} 17. Bg3 {[%clk 0:02:04.6]} 17... Qxb2 {[%clk 0:01:27.6]} 18. Rb1
{[%clk 0:00:43.1]} 18... Qa2 {[%clk 0:00:31]} 19. Ra1 {[%clk 0:00:29.4]} 19...
Qb2 {[%clk 0:00:30.7]} 20. Rb1 {[%clk 0:00:20.6]} 20... Qe5 {[%clk 0:00:30]} 21.
Ng6 {[%clk 0:00:17.2]} 21... Qd5 {[%clk 0:00:30.6]} 22. Nf4 {[%clk 0:00:17.7]}
22... Qc6 {[%clk 0:00:25.9]} 23. Qc2 {[%clk 0:00:16.7]} 23... O-O {[%clk
0:00:23.6]} 24. e4 {[%clk 0:00:15.3]} 24... e5 {[%clk 0:00:23.2]} 25. Nd5 {[%clk
0:00:14]} 25... Nxd5 {[%clk 0:00:22.8]} 26. exd5 {[%clk 0:00:14.4]} 26... Qxd5
{[%clk 0:00:22.8]} 27. f3 {[%clk 0:00:12.4]} 27... Rac8 {[%clk 0:00:19.7]} 28.
Rfd1 {[%clk 0:00:11.8]} 28... Qe6 {[%clk 0:00:19.2]} 29. Bf5 {[%clk 0:00:11.5]}
29... Qb6 {[%clk 0:00:16.5]} 30. Bxc8 {[%clk 0:00:10.7]} 30... Rxc8 {[%clk
0:00:17.4]} 31. Bxe5 {[%clk 0:00:10.6]} 31... c4+ {[%clk 0:00:17.6]} 32. Bd4
{[%clk 0:00:11]} 32... Bc5 {[%clk 0:00:17.8]} 33. Qf2 {[%clk 0:00:11]} 33...
Bxd4 {[%clk 0:00:17.6]} 34. Qxd4 {[%clk 0:00:11.6]} 34... Qxd4+ {[%clk
0:00:18.2]} 35. Rxd4 {[%clk 0:00:12.3]} 35... a5 {[%clk 0:00:17]} 36. Kf2 {[%clk
0:00:09.4]} 36... c3 {[%clk 0:00:17.7]} 37. Ke1 {[%clk 0:00:06.8]} 37... Ba6
{[%clk 0:00:18.3]} 38. Rc1 {[%clk 0:00:05]} 38... b3 {[%clk 0:00:18.2]} 39. Rd6
{[%clk 0:00:03.3]} 39... b2 {[%clk 0:00:18.3]} 40. Kd1 {[%clk 0:00:02.1]} 40...
bxc1=Q+ {[%clk 0:00:17.4]} 41. Kxc1 {[%clk 0:00:02.4]} 41... Bc4 {[%clk
0:00:17.1]} 42. Kc2 {[%clk 0:00:02.6]} 42... Be6 {[%clk 0:00:16.3]} 43. f4
{[%clk 0:00:02.9]} 43... Bf5+ {[%clk 0:00:16.5]} 44. Kc1 {[%clk 0:00:03.6]}
44... c2 {[%clk 0:00:17.2]} 45. Rd5 {[%clk 0:00:01.1]} 45... g6 {[%clk
0:00:16.6]} 0-1